[Event "Kvibergspelen September 2019"]
[Site "Prioritet Serneke Arena, Krutvagen 2, Gothenburg, Sweden"]
[Date "2019.09.27"]
[Round "4.15"]
[White "Troberg Eskola, Love"]
[Black "Ziegler, Ari"]
[Result "0-1"]
[TimeControl "15 minutes + 5 seconds per move from move one (Round 1 - 4) / 90 minutes + 30 seconds per move from move one (Round 5 - 8)"]
[BlackTitle "IM"]
[WhiteFideId "1724185"]
[BlackFideId "1700987"]
[WhiteElo "2143"]
[BlackElo "2299"]

1. e4 {[%clk 00:15:08]} {[%emt 00:00:01]} c5 {[%clk 00:15:07]} {[%emt
00:00:03]} 2. Nc3 {[%clk 00:15:11]} {[%emt 00:00:02]} e6 {[%clk 00:15:08]}
{[%emt 00:00:04]} 3. g3 {[%clk 00:15:11]} {[%emt 00:00:05]} Nc6 {[%clk
00:15:10]} {[%emt 00:00:03]} 4. Bg2 {[%clk 00:15:14]} {[%emt 00:00:02]} g6
{[%clk 00:15:05]} {[%emt 00:00:10]} 5. Nge2 {[%clk 00:15:17]} {[%emt 00:00:02]}
Bg7 {[%clk 00:15:08]} {[%emt 00:00:02]} 6. d3 {[%clk 00:15:11]} {[%emt
00:00:12]} Nge7 {[%clk 00:15:08]} {[%emt 00:00:05]} 7. Be3 {[%clk 00:15:13]}
{[%emt 00:00:03]} d6 {[%clk 00:15:00]} {[%emt 00:00:13]} 8. d4 {[%clk
00:14:46]} {[%emt 00:00:32]} cxd4 {[%clk 00:14:58]} {[%emt 00:00:08]} 9. Nxd4
{[%clk 00:14:50]} {[%emt 00:00:01]} a6 {[%clk 00:13:59]} {[%emt 00:01:04]} 10.
Qd2 {[%clk 00:14:34]} {[%emt 00:00:21]} O-O {[%clk 00:13:47]} {[%emt 00:00:16]}
11. Rd1 {[%clk 00:14:03]} {[%emt 00:00:37]} Ne5 {[%clk 00:13:19]} {[%emt
00:00:32]} 12. Qe2 {[%clk 00:12:14]} {[%emt 00:01:54]} Qc7 {[%clk 00:13:07]}
{[%emt 00:00:17]} 13. O-O {[%clk 00:11:52]} {[%emt 00:00:26]} Rb8 {[%clk
00:12:37]} {[%emt 00:00:36]} 14. f4 {[%clk 00:11:03]} {[%emt 00:00:54]} Nc4
{[%clk 00:12:37]} {[%emt 00:00:05]} 15. Bc1 {[%clk 00:11:01]} {[%emt 00:00:07]}
b5 {[%clk 00:12:03]} {[%emt 00:00:39]} 16. b3 {[%clk 00:10:04]} {[%emt
00:01:03]} Nb6 {[%clk 00:11:26]} {[%emt 00:00:41]} 17. Ncxb5 {[%clk 00:09:38]}
{[%emt 00:00:31]} axb5 {[%clk 00:11:18]} {[%emt 00:00:13]} 18. Nxb5 {[%clk
00:09:42]} {[%emt 00:00:02]} Ba6 {[%clk 00:10:35]} {[%emt 00:00:47]} 19. Rf2
{[%clk 00:07:00]} {[%emt 00:02:47]} Bxb5 {[%clk 00:10:28]} {[%emt 00:00:13]} 20.
Qxb5 {[%clk 00:07:03]} {[%emt 00:00:01]} Nbd5 {[%clk 00:10:18]} {[%emt
00:00:15]} 21. Qd3 {[%clk 00:06:41]} {[%emt 00:00:28]} Nc3 {[%clk 00:09:36]}
{[%emt 00:00:47]} 22. Qxd6 {[%clk 00:06:43]} {[%emt 00:00:03]} Qa7 {[%clk
00:08:19]} {[%emt 00:01:22]} 23. Rd3 {[%clk 00:06:31]} {[%emt 00:00:17]} Nb5
{[%clk 00:06:28]} {[%emt 00:01:57]} 24. Qb4 {[%clk 00:05:41]} {[%emt 00:00:54]}
Bd4 {[%clk 00:06:07]} {[%emt 00:00:26]} 25. Rxd4 {[%clk 00:05:38]} {[%emt
00:00:08]} Nxd4 {[%clk 00:06:09]} {[%emt 00:00:04]} 26. Qa3 {[%clk 00:05:03]}
{[%emt 00:00:40]} Qxa3 {[%clk 00:05:40]} {[%emt 00:00:34]} 27. Bxa3 {[%clk
00:05:06]} {[%emt 00:00:02]} Rfe8 {[%clk 00:05:43]} {[%emt 00:00:02]} 28. Bd6
{[%clk 00:04:42]} {[%emt 00:00:29]} Rbc8 {[%clk 00:05:05]} {[%emt 00:00:43]} 29.
c4 {[%clk 00:04:29]} {[%emt 00:00:18]} Nec6 {[%clk 00:04:21]} {[%emt 00:00:49]}
30. Rd2 {[%clk 00:04:10]} {[%emt 00:00:23]} f6 {[%clk 00:03:40]} {[%emt
00:00:47]} 31. e5 {[%clk 00:03:41]} {[%emt 00:00:34]} fxe5 {[%clk 00:03:37]}
{[%emt 00:00:09]} 32. fxe5 {[%clk 00:03:44]} {[%emt 00:00:02]} Nf5 {[%clk
00:03:37]} {[%emt 00:00:04]} 33. b4 {[%clk 00:03:18]} {[%emt 00:00:31]} Nxb4
{[%clk 00:03:31]} {[%emt 00:00:12]} 34. Bxb4 {[%clk 00:03:18]} {[%emt
00:00:05]} Rxc4 {[%clk 00:03:35]} {[%emt 00:00:01]} 35. a3 {[%clk 00:02:39]}
{[%emt 00:00:44]} Ne3 {[%clk 00:03:38]} {[%emt 00:00:02]} 36. Bh3 {[%clk
00:02:02]} {[%emt 00:00:42]} Rc2 {[%clk 00:03:03]} {[%emt 00:00:39]} 37. Rd6
{[%clk 00:01:40]} {[%emt 00:00:27]} Nf5 {[%clk 00:03:07]} {[%emt 00:00:02]} 38.
Rd7 {[%clk 00:01:28]} {[%emt 00:00:16]} Re2 {[%clk 00:03:02]} {[%emt 00:00:10]}
39. Bf1 {[%clk 00:00:57]} {[%emt 00:00:36]} Rxe5 {[%clk 00:02:53]} {[%emt
00:00:14]} 40. g4 {[%clk 00:00:47]} {[%emt 00:00:16]} Ne3 {[%clk 00:01:46]}
{[%emt 00:01:11]} 41. Bc3 {[%clk 00:00:46]} {[%emt 00:00:06]} Rg5 {[%clk
00:01:37]} {[%emt 00:00:14]} 42. Rg7+ {[%clk 00:00:28]} {[%emt 00:00:24]} Kf8
{[%clk 00:01:41]} 43. Rxh7 {[%clk 00:00:25]} {[%emt 00:00:08]} Nxg4 {[%clk
00:01:45]} {[%emt 00:00:01]} 44. Rh8+ {[%clk 00:00:16]} {[%emt 00:00:15]} Kf7
{[%clk 00:01:48]} {[%emt 00:00:01]} 45. Rh7+ {[%clk 00:00:16]} {[%emt
00:00:05]} Kf8 {[%clk 00:01:52]} {[%emt 00:00:01]} 46. Rh8+ {[%clk 00:00:20]}
{[%emt 00:00:02]} Ke7 {[%clk 00:01:46]} {[%emt 00:00:10]} 47. Rh7+ {[%clk
00:00:18]} {[%emt 00:00:08]} Kd6 {[%clk 00:01:47]} {[%emt 00:00:04]} 48. Bb4+
{[%clk 00:00:19]} {[%emt 00:00:04]} Ke5 {[%clk 00:01:46]} {[%emt 00:00:05]} 49.
Bc3+ {[%clk 00:00:18]} {[%emt 00:00:06]} Ke4 {[%clk 00:01:47]} {[%emt
00:00:05]} 50. Bg2+ {[%clk 00:00:21]} {[%emt 00:00:02]} Ke3 {[%clk 00:01:51]}
{[%emt 00:00:01]} 51. Rf7 {[%clk 00:00:22]} {[%emt 00:00:04]} Ne5 {[%clk
00:01:47]} {[%emt 00:00:09]} 52. Rf1 {[%clk 00:00:12]} {[%emt 00:00:15]} Nd3
{[%clk 00:01:28]} {[%emt 00:00:24]} 53. Rf3+ {[%clk 00:00:15]} Ke2 {[%clk
00:01:32]} 54. Rh3 {[%clk 00:00:16]} {[%emt 00:00:04]} Nf4 {[%clk 00:01:29]}
{[%emt 00:00:08]} 55. Rg3 {[%clk 00:00:17]} {[%emt 00:00:05]} Rxg3 {[%clk
00:01:34]} 56. hxg3 Nxg2 57. Kxg2 {[%clk 00:00:25]} Rc8 {[%clk 00:01:33]}
{[%emt 00:00:06]} 58. Bb4 {[%clk 00:00:28]} {[%emt 00:00:01]} Rc4 {[%clk
00:01:35]} {[%emt 00:00:02]} 59. g4 {[%clk 00:00:31]} {[%emt 00:00:02]} e5
{[%clk 00:01:36]} {[%emt 00:00:04]} 60. Bd6 {[%clk 00:00:34]} {[%emt 00:00:03]}
e4 {[%clk 00:01:40]} 0-1

[Event "Kvibergspelen September 2019"]
[Site "Prioritet Serneke Arena, Krutvagen 2, Gothenburg, Sweden"]
[Date "2019.09.27"]
[Round "4.16"]
[White "Storme, Isak"]
[Black "Skou, Niels"]
[Result "1-0"]
[TimeControl "15 minutes + 5 seconds per move from move one (Round 1 - 4) / 90 minutes + 30 seconds per move from move one (Round 5 - 8)"]
[WhiteTitle "FM"]
[WhiteFideId "1728113"]
[BlackFideId "1413155"]
[WhiteElo "2272"]
[BlackElo "2082"]

1. e4 {[%clk 00:15:07]} {[%emt 00:00:02]} e5 {[%clk 00:15:07]} {[%emt
00:00:03]} 2. Nf3 {[%clk 00:15:11]} {[%emt 00:00:02]} Nc6 {[%clk 00:15:10]}
{[%emt 00:00:03]} 3. Bc4 {[%clk 00:15:14]} {[%emt 00:00:02]} Bc5 {[%clk
00:15:11]} {[%emt 00:00:02]} 4. d3 {[%clk 00:15:16]} {[%emt 00:00:03]} Nf6
{[%clk 00:14:43]} {[%emt 00:00:33]} 5. O-O {[%clk 00:15:17]} {[%emt 00:00:04]}
d6 {[%clk 00:14:33]} {[%emt 00:00:16]} 6. c3 {[%clk 00:15:17]} {[%emt
00:00:05]} a6 {[%clk 00:14:30]} {[%emt 00:00:08]} 7. a4 {[%clk 00:15:05]}
{[%emt 00:00:17]} O-O {[%clk 00:14:13]} {[%emt 00:00:22]} 8. Nbd2 {[%clk
00:14:51]} {[%emt 00:00:18]} Ba7 {[%clk 00:14:11]} {[%emt 00:00:08]} 9. h3
{[%clk 00:14:51]} {[%emt 00:00:04]} h6 {[%clk 00:13:23]} {[%emt 00:00:54]} 10.
Re1 {[%clk 00:14:50]} {[%emt 00:00:06]} Re8 {[%clk 00:13:17]} {[%emt 00:00:10]}
11. b4 {[%clk 00:12:12]} {[%emt 00:02:45]} Be6 {[%clk 00:13:02]} {[%emt
00:00:19]} 12. Qc2 {[%clk 00:11:30]} {[%emt 00:00:47]} Bxc4 {[%clk 00:10:52]}
{[%emt 00:02:15]} 13. Nxc4 {[%clk 00:11:32]} {[%emt 00:00:03]} Qd7 {[%clk
00:10:23]} {[%emt 00:00:34]} 14. b5 {[%clk 00:10:13]} {[%emt 00:01:24]} Ne7
{[%clk 00:10:03]} {[%emt 00:00:25]} 15. Rb1 {[%clk 00:09:57]} {[%emt 00:00:22]}
axb5 {[%clk 00:08:13]} {[%emt 00:01:55]} 16. axb5 {[%clk 00:09:59]} {[%emt
00:00:02]} Nc8 {[%clk 00:08:02]} {[%emt 00:00:16]} 17. Bd2 {[%clk 00:08:09]}
{[%emt 00:01:54]} Nb6 {[%clk 00:06:22]} {[%emt 00:01:46]} 18. Na5 {[%clk
00:08:09]} {[%emt 00:00:05]} Reb8 {[%clk 00:05:58]} {[%emt 00:00:28]} 19. d4
{[%clk 00:07:41]} {[%emt 00:00:34]} exd4 {[%clk 00:05:43]} {[%emt 00:00:20]} 20.
cxd4 {[%clk 00:07:44]} {[%emt 00:00:02]} Nc8 {[%clk 00:05:40]} {[%emt
00:00:08]} 21. e5 {[%clk 00:05:34]} {[%emt 00:02:14]} Nd5 {[%clk 00:05:32]}
{[%emt 00:00:14]} 22. Nc4 {[%clk 00:05:29]} {[%emt 00:00:10]} Bb6 {[%clk
00:05:04]} {[%emt 00:00:33]} 23. Qe4 {[%clk 00:04:34]} {[%emt 00:01:00]} c6
{[%clk 00:05:00]} {[%emt 00:00:09]} 24. bxc6 {[%clk 00:03:27]} {[%emt
00:01:12]} bxc6 {[%clk 00:05:03]} {[%emt 00:00:02]} 25. Qh4 {[%clk 00:03:22]}
{[%emt 00:00:10]} Bd8 {[%clk 00:04:15]} {[%emt 00:00:53]} 26. Rxb8 {[%clk
00:02:55]} {[%emt 00:00:32]} Rxb8 {[%clk 00:04:06]} {[%emt 00:00:15]} 27. Qg3
{[%clk 00:02:59]} Kh7 {[%clk 00:03:09]} {[%emt 00:01:01]} 28. exd6 {[%clk
00:02:58]} {[%emt 00:00:06]} Rb3 {[%clk 00:02:40]} {[%emt 00:00:34]} 29. Nfe5
{[%clk 00:02:21]} {[%emt 00:00:42]} Qb7 {[%clk 00:01:45]} {[%emt 00:01:01]} 30.
Qg4 {[%clk 00:02:15]} {[%emt 00:00:10]} Bf6 {[%clk 00:01:13]} {[%emt 00:00:38]}
31. Na5 {[%clk 00:02:06]} {[%emt 00:00:14]} 1-0

[Event "Kvibergspelen September 2019"]
[Site "Prioritet Serneke Arena, Krutvagen 2, Gothenburg, Sweden"]
[Date "2019.09.27"]
[Round "4.17"]
[White "Harren, Mats"]
[Black "Pham, Bich Ngoc"]
[Result "1-0"]
[TimeControl "15 minutes + 5 seconds per move from move one (Round 1 - 4) / 90 minutes + 30 seconds per move from move one (Round 5 - 8)"]
[BlackTitle "WIM"]
[WhiteFideId "1703943"]
[BlackFideId "12401285"]
[WhiteElo "2113"]
[BlackElo "2244"]

1. e4 {[%clk 00:15:09]} g6 {[%clk 00:15:08]} {[%emt 00:00:03]} 2. d4 {[%clk
00:15:11]} {[%emt 00:00:03]} Bg7 {[%clk 00:15:11]} {[%emt 00:00:01]} 3. Nc3
{[%clk 00:15:09]} {[%emt 00:00:08]} d6 {[%clk 00:15:15]} 4. Bg5 {[%clk
00:15:09]} {[%emt 00:00:05]} Nc6 {[%clk 00:15:13]} {[%emt 00:00:07]} 5. d5
{[%clk 00:13:53]} {[%emt 00:01:21]} Nb8 {[%clk 00:14:45]} {[%emt 00:00:33]} 6.
Qd2 {[%clk 00:13:38]} {[%emt 00:00:20]} h6 {[%clk 00:14:26]} {[%emt 00:00:24]}
7. Bh4 {[%clk 00:13:30]} {[%emt 00:00:12]} g5 {[%clk 00:14:29]} {[%emt
00:00:02]} 8. Bg3 {[%clk 00:13:34]} {[%emt 00:00:02]} e5 {[%clk 00:14:31]}
{[%emt 00:00:03]} 9. Be2 {[%clk 00:12:47]} {[%emt 00:00:51]} Nf6 {[%clk
00:14:21]} {[%emt 00:00:15]} 10. h4 {[%clk 00:12:43]} {[%emt 00:00:09]} g4
{[%clk 00:14:22]} {[%emt 00:00:04]} 11. h5 {[%clk 00:12:32]} {[%emt 00:00:16]}
Nbd7 {[%clk 00:14:20]} {[%emt 00:00:08]} 12. f3 {[%clk 00:12:25]} {[%emt
00:00:11]} gxf3 {[%clk 00:14:02]} {[%emt 00:00:24]} 13. gxf3 {[%clk 00:12:18]}
{[%emt 00:00:12]} Nb6 {[%clk 00:13:36]} {[%emt 00:00:31]} 14. a4 {[%clk
00:11:10]} {[%emt 00:01:13]} a5 {[%clk 00:13:38]} {[%emt 00:00:02]} 15. Bf2
{[%clk 00:11:10]} {[%emt 00:00:06]} Ng8 {[%clk 00:12:57]} {[%emt 00:00:45]} 16.
Bb5+ {[%clk 00:10:40]} {[%emt 00:00:35]} Bd7 {[%clk 00:12:55]} {[%emt
00:00:07]} 17. Bxb6 {[%clk 00:10:14]} {[%emt 00:00:31]} cxb6 {[%clk 00:12:55]}
{[%emt 00:00:05]} 18. Qg2 {[%clk 00:09:41]} {[%emt 00:00:38]} Qg5 {[%clk
00:12:46]} {[%emt 00:00:15]} 19. Qxg5 {[%clk 00:09:13]} {[%emt 00:00:33]} hxg5
{[%clk 00:12:49]} {[%emt 00:00:02]} 20. Nge2 {[%clk 00:09:16]} {[%emt
00:00:02]} Rc8 {[%clk 00:12:14]} {[%emt 00:00:39]} 21. Kd2 {[%clk 00:08:39]}
{[%emt 00:00:41]} Nf6 {[%clk 00:12:00]} {[%emt 00:00:19]} 22. Ng3 {[%clk
00:08:36]} {[%emt 00:00:08]} g4 {[%clk 00:11:56]} {[%emt 00:00:09]} 23. Nf5
{[%clk 00:08:37]} {[%emt 00:00:05]} Bf8 {[%clk 00:11:59]} {[%emt 00:00:02]} 24.
fxg4 {[%clk 00:07:23]} {[%emt 00:01:19]} Nxg4 {[%clk 00:11:54]} {[%emt
00:00:10]} 25. Raf1 {[%clk 00:07:18]} {[%emt 00:00:09]} Nh6 {[%clk 00:11:50]}
{[%emt 00:00:09]} 26. Kd3 {[%clk 00:07:12]} {[%emt 00:00:11]} Nxf5 {[%clk
00:11:06]} {[%emt 00:00:49]} 27. Rxf5 {[%clk 00:07:11]} {[%emt 00:00:07]} Rc7
{[%clk 00:10:45]} {[%emt 00:00:25]} 28. Rhf1 {[%clk 00:06:48]} {[%emt
00:00:28]} Rh7 {[%clk 00:10:45]} {[%emt 00:00:05]} 29. Bxd7+ {[%clk 00:05:34]}
{[%emt 00:01:19]} Rxd7 {[%clk 00:10:48]} {[%emt 00:00:02]} 30. Nd1 {[%clk
00:05:35]} {[%emt 00:00:04]} Bh6 {[%clk 00:10:44]} {[%emt 00:00:10]} 31. Rg1
{[%clk 00:05:21]} {[%emt 00:00:18]} Ke7 {[%clk 00:10:33]} {[%emt 00:00:16]} 32.
c3 {[%clk 00:04:46]} {[%emt 00:00:40]} Rd8 {[%clk 00:10:33]} {[%emt 00:00:05]}
33. Kc4 {[%clk 00:04:40]} {[%emt 00:00:11]} Rdh8 {[%clk 00:10:13]} {[%emt
00:00:25]} 34. Kb5 {[%clk 00:04:33]} {[%emt 00:00:13]} Bc1 {[%clk 00:09:22]}
{[%emt 00:00:56]} 35. Kxb6 {[%clk 00:04:22]} {[%emt 00:00:17]} Rxh5 {[%clk
00:09:25]} 36. Rxh5 {[%clk 00:04:10]} {[%emt 00:00:17]} Rxh5 {[%clk 00:09:29]}
37. Kxa5 {[%clk 00:04:11]} {[%emt 00:00:04]} Rh2 {[%clk 00:09:11]} {[%emt
00:00:22]} 38. b3 {[%clk 00:03:57]} {[%emt 00:00:19]} Re2 {[%clk 00:09:07]}
{[%emt 00:00:08]} 39. Kb6 {[%clk 00:03:24]} {[%emt 00:00:40]} Ra2 {[%clk
00:07:53]} {[%emt 00:01:19]} 40. a5 {[%clk 00:02:33]} {[%emt 00:00:55]} Ra1
{[%clk 00:07:35]} {[%emt 00:00:23]} 41. Rf1 {[%clk 00:02:20]} {[%emt 00:00:18]}
Bd2 {[%clk 00:07:22]} {[%emt 00:00:18]} 42. b4 {[%clk 00:02:13]} {[%emt
00:00:12]} Bxc3 {[%clk 00:07:22]} {[%emt 00:00:06]} 43. Rxf7+ {[%clk 00:01:24]}
{[%emt 00:00:53]} Kxf7 {[%clk 00:07:18]} {[%emt 00:00:09]} 44. Nxc3 {[%clk
00:01:29]} Ke7 {[%clk 00:05:39]} {[%emt 00:01:44]} 45. Kxb7 {[%clk 00:01:19]}
{[%emt 00:00:15]} Rc1 {[%clk 00:05:29]} {[%emt 00:00:15]} 46. a6 {[%clk
00:00:48]} {[%emt 00:00:36]} Rxc3 {[%clk 00:05:32]} {[%emt 00:00:01]} 47. a7
{[%clk 00:00:49]} {[%emt 00:00:05]} Rb3 {[%clk 00:05:34]} {[%emt 00:00:02]} 48.
a8=Q {[%clk 00:00:25]} {[%emt 00:00:29]} Rxb4+ {[%clk 00:05:36]} {[%emt
00:00:03]} 49. Kc6 {[%clk 00:00:28]} Rc4+ {[%clk 00:05:36]} {[%emt 00:00:06]}
50. Kb5 {[%clk 00:00:32]} {[%emt 00:00:02]} Rxe4 {[%clk 00:05:07]} {[%emt
00:00:34]} 51. Qg8 {[%clk 00:00:34]} {[%emt 00:00:03]} Re1 {[%clk 00:05:00]}
{[%emt 00:00:12]} 52. Qe6+ {[%clk 00:00:37]} {[%emt 00:00:02]} Kd8 {[%clk
00:05:04]} {[%emt 00:00:01]} 53. Qxd6+ {[%clk 00:00:40]} {[%emt 00:00:02]} Ke8
{[%clk 00:05:08]} 54. Qe6+ {[%clk 00:00:43]} {[%emt 00:00:03]} Kd8 {[%clk
00:05:12]} 55. Kc6 {[%clk 00:00:31]} {[%emt 00:00:17]} Rc1+ {[%clk 00:05:13]}
{[%emt 00:00:05]} 56. Kb5 {[%clk 00:00:32]} {[%emt 00:00:03]} Rb1+ {[%clk
00:05:14]} {[%emt 00:00:04]} 57. Kc4 {[%clk 00:00:33]} {[%emt 00:00:04]} Re1
{[%clk 00:05:18]} 58. Qf7 {[%clk 00:00:28]} {[%emt 00:00:10]} e4 {[%clk
00:05:20]} {[%emt 00:00:04]} 59. d6 {[%clk 00:00:25]} {[%emt 00:00:07]} Rc1+
{[%clk 00:05:23]} {[%emt 00:00:02]} 60. Kb3 {[%clk 00:00:29]} {[%emt 00:00:01]}
Rd1 {[%clk 00:05:16]} {[%emt 00:00:13]} 61. Qe7+ {[%clk 00:00:31]} {[%emt
00:00:02]} Kc8 {[%clk 00:05:20]} {[%emt 00:00:01]} 62. Qc7# {[%clk 00:00:35]}
1-0

[Event "Kvibergspelen September 2019"]
[Site "Prioritet Serneke Arena, Krutvagen 2, Gothenburg, Sweden"]
[Date "2019.09.27"]
[Round "4.18"]
[White "Petersson, Baldur Teodor"]
[Black "Troedsson, Anton"]
[Result "1-0"]
[TimeControl "15 minutes + 5 seconds per move from move one (Round 1 - 4) / 90 minutes + 30 seconds per move from move one (Round 5 - 8)"]
[WhiteTitle "CM"]
[WhiteFideId "2309157"]
[BlackFideId "1746006"]
[WhiteElo "2238"]
[BlackElo "2056"]

1. e4 {[%clk 00:15:08]} {[%emt 00:00:01]} c6 {[%clk 00:15:10]} {[%emt
00:00:02]} 2. d4 {[%clk 00:15:11]} {[%emt 00:00:01]} d5 {[%clk 00:15:14]}
{[%emt 00:00:02]} 3. e5 {[%clk 00:15:14]} {[%emt 00:00:01]} Bf5 {[%clk
00:15:18]} 4. g4 {[%clk 00:14:57]} {[%emt 00:00:22]} Bd7 {[%clk 00:15:18]}
{[%emt 00:00:05]} 5. c4 {[%clk 00:14:54]} {[%emt 00:00:09]} e6 {[%clk
00:15:18]} {[%emt 00:00:04]} 6. Nc3 {[%clk 00:14:57]} {[%emt 00:00:02]} Ne7
{[%clk 00:15:16]} {[%emt 00:00:06]} 7. Nf3 {[%clk 00:14:38]} {[%emt 00:00:24]}
h5 {[%clk 00:15:18]} {[%emt 00:00:04]} 8. gxh5 {[%clk 00:14:37]} {[%emt
00:00:06]} Nf5 {[%clk 00:15:11]} {[%emt 00:00:11]} 9. Bg5 {[%clk 00:13:25]}
{[%emt 00:01:17]} Qa5 {[%clk 00:14:35]} {[%emt 00:00:42]} 10. a3 {[%clk
00:13:11]} {[%emt 00:00:19]} dxc4 {[%clk 00:13:59]} {[%emt 00:00:41]} 11. Bxc4
{[%clk 00:11:22]} {[%emt 00:01:53]} b5 {[%clk 00:13:59]} {[%emt 00:00:05]} 12.
Bd3 {[%clk 00:11:25]} {[%emt 00:00:02]} Rxh5 {[%clk 00:13:54]} {[%emt
00:00:10]} 13. h4 {[%clk 00:10:12]} {[%emt 00:01:19]} Na6 {[%clk 00:13:05]}
{[%emt 00:00:54]} 14. O-O {[%clk 00:07:08]} {[%emt 00:03:09]} Nc7 {[%clk
00:12:23]} {[%emt 00:00:47]} 15. Qe2 {[%clk 00:06:07]} {[%emt 00:01:06]} Qb6
{[%clk 00:12:14]} {[%emt 00:00:14]} 16. Rfd1 {[%clk 00:05:43]} {[%emt
00:00:29]} Be7 {[%clk 00:12:07]} {[%emt 00:00:12]} 17. Bxf5 {[%clk 00:05:35]}
{[%emt 00:00:13]} exf5 {[%clk 00:12:02]} {[%emt 00:00:10]} 18. Bxe7 {[%clk
00:05:37]} {[%emt 00:00:03]} Kxe7 {[%clk 00:12:04]} {[%emt 00:00:03]} 19. d5
{[%clk 00:05:19]} {[%emt 00:00:22]} cxd5 {[%clk 00:10:34]} {[%emt 00:01:36]} 20.
Rxd5 {[%clk 00:05:03]} {[%emt 00:00:21]} Rah8 {[%clk 00:08:26]} {[%emt
00:02:12]} 21. Rd6 {[%clk 00:02:54]} {[%emt 00:02:14]} Qb7 {[%clk 00:07:56]}
{[%emt 00:00:36]} 22. Rad1 {[%clk 00:02:45]} {[%emt 00:00:14]} Be6 {[%clk
00:06:20]} {[%emt 00:01:41]} 23. Qd3 {[%clk 00:02:14]} {[%emt 00:00:36]} g6
{[%clk 00:02:57]} {[%emt 00:03:28]} 24. Rd8 {[%clk 00:01:46]} {[%emt 00:00:33]}
Qc6 {[%clk 00:02:35]} {[%emt 00:00:27]} 25. Rxh8 {[%clk 00:01:48]} {[%emt
00:00:03]} 1-0